[Event "FIDE WCCC U8 2018"]
[Site "Santiago de Compostela"]
[Date "2018.11.14"]
[Round "10"]
[White "Zverev, Lev"]
[Black "Chennareddy, Yuvraj"]
[Result "1/2-1/2"]
[ECO "C54"]
[WhiteElo "1723"]
[BlackElo "1497"]
[Annotator "NA RC"]
[PlyCount "154"]
[EventDate "2018.11.04"]
[EventType "swiss"]
[EventCountry "ESP"]
[SourceTitle "playchess.com"]
[Source "ChessBase"]
[SourceQuality "1"]
[TimeControl "40/5400+30:1800+30"]

1. e4 {[%emt 0:00:00]} e5 {[%emt 0:00:00]} 2. Nf3 {[%emt 0:00:00]} Nc6 {[%emt 0:00:00]} 3. Bc4 {[%emt 0:00:00]} Bc5 {[%emt 0:00:14]} 4. c3 {[%emt 0:00:00]} Nf6 {[%emt 0:00:08]} 5. d3 {[%emt 0:00:03]} O-O {[%emt 0:00:26]} 6. Bb3 {[%emt 0:00:07]} d5 {[%emt 0:04:09]} 7. Qe2 {[%emt 0:00:17]} h6 {[%emt 0:24:42]} 8. h3 {[%emt 0:00:10]} Re8 {[%emt 0:00:38]} 9. Nbd2 {[%emt 0:00:27]} d4 {[%emt 0:05:37]} 10. Nf1 {[%emt 0:00:09]} Be6 {[%emt 0:04:38]} 11. Ng3 {[%emt 0:00:11]} Qd7 {[%emt 0:02:45]} 12. O-O {[%emt 0:00:40]} Kh7 {[%emt 0:06:07]} 13. Nh4 {[%emt 0:02:07]} dxc3 {[%emt 0:07:13]} 14. bxc3 {[%emt 0:00:17]} g6 {[%emt 0:05:37]} 15. Kh2 {[%emt 0:00:15]} Qe7 {[%emt 0:01:15]} 16. Bxe6 {[%emt 0:03:25]} fxe6 {[%emt 0:01:29]} 17. Be3 {[%emt 0:03:00]} Bb6 {[%emt 0:01:47]} 18. Nf3 {[%emt 0:00:37]} g5 {[%emt 0:01:50]} 19. Nd2 {[%emt 0:00:36]} Red8 {[%emt 0:03:31]} 20. Nc4 {[%emt 0:00:26]} Rd7 {[%emt 0:00:12]} 21. Rad1 {[%emt 0:00:54]} Rad8 {[%emt 0:02:51]} 22. Rd2 {[%emt 0:00:55]} Bxe3 {[%emt 0:07:08]} 23. fxe3 {[%emt 0:00:06]} b5 {[%emt 0:00:14]} 24. Na3 {[%emt 0:00:19]} b4 {[%emt 0:00:17]} 25. Nb1 {[%emt 0:01:41]} bxc3 {[%emt 0:00:33]} 26. Nxc3 {[%emt 0:00:12]} Nb4 {[%emt 0:00:07]} 27. Rfd1 {[%emt 0:00:15]} Qc5 {[%emt 0:00:53]} 28. Na4 {[%emt 0:00:47]} Qa5 {[%emt 0:00:38]} 29. Nb2 {[%emt 0:00:08]} Kg6 {[%emt 0:04:53]} 30. d4 {[%emt 0:02:57]} exd4 {[%emt 0:01:33]} 31. exd4 {[%emt 0:00:08]} Kg7 {[%emt 0:02:44]} 32. Nc4 {[%emt 0:00:14]} Qa6 {[%emt 0:00:49]} 33. Ne5 {[%emt 0:00:31]} Qxe2 {[%emt 0:00:35]} 34. Nxe2 {[%emt 0:00:10]} Rd6 {[%emt 0:00:07]} 35. Ng3 {[%emt 0:01:22]} c5 {[%emt 0:00:58]} 36. Nc4 {[%emt 0:01:33]} Rxd4 {[%emt 0:00:22]} 37. Rxd4 {[%emt 0:00:21]} Rxd4 {[%emt 0:00:05]} 38. Rxd4 {[%emt 0:00:11]} cxd4 {[%emt 0:00:06]} 39. a3 {[%emt 0:00:26]} Nc2 {[%emt 0:00:19]} 40. e5 {[%emt 0:00:00]} Nd5 {[%emt 0:00:00]} 41. Ne4 {[%emt 0:00:25]} Nde3 {[%emt 0:01:01]} 42. Ned2 {[%emt 0:01:10]} Nxc4 {[%emt 0:00:32]} 43. Nxc4 {[%emt 0:00:06]} d3 {[%emt 0:00:05]} 44. a4 {[%emt 0:00:04]} Kg6 {[%emt 0:11:33]} 45. g4 {[%emt 0:00:12]} Kf7 {[%emt 0:03:45]} 46. Kg3 {[%emt 0:00:08]} Ke7 {[%emt 0:00:56]} 47. Kf3 {[%emt 0:00:11]} Ne1+ {[%emt 0:01:38]} 48. Ke3 {[%emt 0:00:17]} Ng2+ {[%emt 0:00:04]} 49. Kxd3 {[%emt 0:00:19]} Nf4+ {[%emt 0:00:06]} 50. Kd4 {[%emt 0:00:33]} Nxh3 {[%emt 0:00:06]} 51. Kc5 {[%emt 0:00:06]} Nf2 {[%emt 0:00:38]} 52. Ne3 {[%emt 0:00:05]} Nd3+ {[%emt 0:00:30]} 53. Kd4 {[%emt 0:00:17]} Nf2 {[%emt 0:01:51]} 54. Kc5 {[%emt 0:00:11]} Kd7 {[%emt 0:00:08]} 55. Kb5 {[%emt 0:00:15]} Kc7 {[%emt 0:00:12]} 56. Ka6 {[%emt 0:00:06]} Kb8 {[%emt 0:00:10]} 57. Kb5 {[%emt 0:00:06]} Kb7 {[%emt 0:00:35]} 58. Kc5 {[%emt 0:00:29]} Kc7 {[%emt 0:00:31]} 59. Kb5 {[%emt 0:00:23]} Ne4 {[%emt 0:01:22]} 60. Ka6 {[%emt 0:00:16]} Nc5+ {[%emt 0:00:14]} 61. Kb5 {[%emt 0:00:17]} Nd3 {[%emt 0:02:33]} 62. Nc4 {[%emt 0:00:07]} Nf2 {[%emt 0:01:17]} 63. Ne3 {[%emt 0:00:06]} Nd3 {[%emt 0:03:29]} 64. Nc4 {[%emt 0:00:08]} Nf4 {[%emt 0:00:40]} 65. Ka6 {[%emt 0:00:42]} h5 {[%emt 0:01:11]} 66. gxh5 {[%emt 0:00:27]} Nxh5 {[%emt 0:00:06]} 67. Kxa7 {[%emt 0:00:35]} g4 {[%emt 0:00:14]} 68. Ne3 {[%emt 0:00:17]} g3 {[%emt 0:00:06]} 69. Ng2 {[%emt 0:00:05]} Ng7 {[%emt 0:00:34]} 70. Nf4 {[%emt 0:00:38]} Kc8 {[%emt 0:15:34]} 71. Kb6 {[%emt 0:00:10]} Ne8 {[%emt 0:00:38]} 72. a5 {[%emt 0:01:58]} Nc7 {[%emt 0:01:01]} 73. Kc6 {[%emt 0:05:27]} Na6 {[%emt 0:02:33]} 74. Kd6 {[%emt 0:00:23]} Nc7 {[%emt 0:00:06]} 75. Ng2 {[%emt 0:01:34]} Kd8 {[%emt 0:00:19]} 76. Nf4 {[%emt 0:00:32]} Kc8 {[%emt 0:00:11]} 77. Kc6 {[%emt 0:01:52]} Kb8 {[%emt 0:00:13]} 1/2-1/2

[Event "FIDE WCCC U8 2018"]
[Site "Santiago de Compostela"]
[Date "2018.11.14"]
[Round "10"]
[White "Azadaliyev, Jahandar"]
[Black "Gordeev, Denis"]
[Result "1-0"]
[ECO "A42"]
[WhiteElo "1674"]
[BlackElo "1553"]
[Annotator "NA RC"]
[PlyCount "125"]
[EventDate "2018.11.04"]
[EventType "swiss"]
[EventCountry "ESP"]
[SourceTitle "playchess.com"]
[Source "ChessBase"]
[SourceQuality "1"]
[TimeControl "40/5400+30:1800+30"]

1. d4 {[%emt 0:00:00]} g6 {[%emt 0:00:00]} 2. c4 {[%emt 0:00:13]} Bg7 {[%emt 0:00:33]} 3. Nc3 {[%emt 0:01:16]} d6 {[%emt 0:01:00]} 4. e4 {[%emt 0:00:54]} e5 {[%emt 0:01:32]} 5. d5 {[%emt 0:01:29]} Nd7 {[%emt 0:01:38]} 6. g3 {[%emt 0:00:27]} Nh6 {[%emt 0:04:42]} 7. Bg2 {[%emt 0:00:19]} O-O {[%emt 0:01:51]} 8. Nge2 {[%emt 0:01:27]} f5 {[%emt 0:01:29]} 9. Qc2 {[%emt 0:04:48]} a5 {[%emt 0:06:10]} 10. h3 {[%emt 0:00:54]} Nc5 {[%emt 0:01:09]} 11. Be3 {[%emt 0:00:26]} Nxe4 {[%emt 0:06:56]} 12. Nxe4 {[%emt 0:00:55]} fxe4 {[%emt 0:00:18]} 13. g4 {[%emt 0:00:25]} Nf7 {[%emt 0:04:19]} 14. Qd2 {[%emt 0:00:50]} Bf6 {[%emt 0:10:37]} 15. Ng3 {[%emt 0:01:34]} Ng5 {[%emt 0:10:58]} 16. Nxe4 {[%emt 0:00:47]} Nxe4 {[%emt 0:01:33]} 17. Bxe4 {[%emt 0:00:04]} Bd7 {[%emt 0:03:36]} 18. a4 {[%emt 0:01:09]} c6 {[%emt 0:08:55]} 19. O-O {[%emt 0:03:07]} Qc7 {[%emt 0:09:34]} 20. b3 {[%emt 0:05:42]} Kh8 {[%emt 0:01:19]} 21. Rad1 {[%emt 0:00:23]} Rad8 {[%emt 0:01:31]} 22. f3 {[%emt 0:06:53]} Rf7 {[%emt 0:03:37]} 23. Qf2 {[%emt 0:05:39]} c5 {[%emt 0:01:25]} 24. h4 {[%emt 0:03:13]} Rdf8 {[%emt 0:01:58]} 25. Kg2 {[%emt 0:00:41]} Qc8 {[%emt 0:02:05]} 26. Qg3 {[%emt 0:00:36]} Qe8 {[%emt 0:01:50]} 27. Rh1 {[%emt 0:01:33]} Rg8 {[%emt 0:00:58]} 28. g5 {[%emt 0:04:43]} Bd8 {[%emt 0:01:24]} 29. h5 {[%emt 0:00:37]} Bf5 {[%emt 0:01:09]} 30. hxg6 {[%emt 0:02:27]} Bxg6 {[%emt 0:01:04]} 31. Rh6 {[%emt 0:06:19]} Rd7 {[%emt 0:01:53]} 32. Bxg6 {[%emt 0:12:04]} Rxg6 {[%emt 0:00:13]} 33. Rdh1 {[%emt 0:00:46]} Qg8 {[%emt 0:01:19]} 34. Rxg6 {[%emt 0:21:30]} Qxg6 {[%emt 0:00:15]} 35. Rh6 {[%emt 0:00:18]} Qg8 {[%emt 0:00:23]} 36. Kf2 {[%emt 0:04:13]} b6 {[%emt 0:01:05]} 37. Rxd6 {[%emt 0:01:30]} Rg7 {[%emt 0:03:42]} 38. Rh6 {[%emt 0:03:56]} Bxg5 {[%emt 0:00:42]} 39. Qxe5 {[%emt 0:00:23]} Bxh6 {[%emt 0:01:00]} 40. Bxh6 {[%emt 0:00:00]} Qf8 {[%emt 0:00:00]} 41. Bxg7+ Qxg7 {[%emt 0:01:54]} 42. Qxg7+ {[%emt 0:00:34]} Kxg7 {[%emt 0:00:10]} 43. Kg3 {[%emt 0:00:08]} Kf7 {[%emt 0:00:13]} 44. Kh4 {[%emt 0:00:07]} Kf6 {[%emt 0:00:33]} 45. Kh5 {[%emt 0:00:07]} Kf5 {[%emt 0:00:26]} 46. Kh6 {[%emt 0:00:06]} Kf6 {[%emt 0:00:10]} 47. Kxh7 {[%emt 0:00:07]} Kf7 {[%emt 0:00:06]} 48. f4 {[%emt 0:00:09]} Kf6 {[%emt 0:00:11]} 49. Kg8 {[%emt 0:00:05]} Ke7 {[%emt 0:01:05]} 50. Kg7 {[%emt 0:00:10]} Kd7 {[%emt 0:00:10]} 51. f5 {[%emt 0:00:03]} Ke7 {[%emt 0:00:13]} 52. f6+ {[%emt 0:00:04]} Kd6 {[%emt 0:00:06]} 53. f7 {[%emt 0:00:04]} Ke5 {[%emt 0:00:16]} 54. f8=Q {[%emt 0:00:10]} Kd4 {[%emt 0:00:07]} 55. Qf3 {[%emt 0:00:09]} Ke5 {[%emt 0:00:10]} 56. Kg6 {[%emt 0:00:13]} Kd6 {[%emt 0:00:11]} 57. Qf6+ {[%emt 0:00:06]} Kd7 {[%emt 0:00:10]} 58. Kf7 {[%emt 0:00:07]} Kc7 {[%emt 0:00:12]} 59. Qc6+ {[%emt 0:00:19]} Kb8 {[%emt 0:00:06]} 60. d6 {[%emt 0:00:18]} Ka7 {[%emt 0:00:08]} 61. d7 {[%emt 0:01:02]} Kb8 {[%emt 0:00:12]} 62. d8=Q+ {[%emt 0:00:07]} Ka7 {[%emt 0:00:09]} 63. Qda8# {[%emt 0:00:07]} 1-0

[Event "FIDE WCCC U8 2018"]
[Site "Santiago de Compostela"]
[Date "2018.11.14"]
[Round "10"]
[White "Udipi, Kala Kishan"]
[Black "Lu, Miaoyi"]
[Result "0-1"]
[ECO "D18"]
[WhiteElo "1653"]
[BlackElo "1717"]
[Annotator "NA RC"]
[PlyCount "114"]
[EventDate "2018.11.04"]
[EventType "swiss"]
[EventCountry "ESP"]
[SourceTitle "playchess.com"]
[Source "ChessBase"]
[SourceQuality "1"]
[TimeControl "40/5400+30:1800+30"]

1. d4 {[%emt 0:00:00]} d5 {[%emt 0:00:00]} 2. Nf3 {[%emt 0:00:00]} Nf6 {[%emt 0:00:00]} 3. c4 {[%emt 0:00:01]} c6 {[%emt 0:00:00]} 4. Nc3 {[%emt 0:00:18]} dxc4 {[%emt 0:00:00]} 5. a4 {[%emt 0:00:26]} Bf5 {[%emt 0:00:00]} 6. e3 {[%emt 0:00:08]} e6 {[%emt 0:00:00]} 7. Bxc4 {[%emt 0:00:07]} Bb4 {[%emt 0:00:00]} 8. O-O {[%emt 0:00:00]} Nbd7 {[%emt 0:00:00]} 9. Qe2 {[%emt 0:00:02]} Bg6 {[%emt 0:00:00]} 10. e4 {[%emt 0:00:53]} O-O {[%emt 0:00:15]} 11. Bd3 {[%emt 0:00:10]} Re8 {[%emt 0:01:51]} 12. e5 {[%emt 0:01:19]} Nd5 {[%emt 0:00:16]} 13. Nxd5 {[%emt 0:00:11]} cxd5 {[%emt 0:00:07]} 14. Bxg6 {[%emt 0:01:03]} hxg6 {[%emt 0:02:49]} 15. Qb5 {[%emt 0:06:53]} a5 {[%emt 0:11:08]} 16. Bd2 {[%emt 0:06:01]} Bxd2 {[%emt 0:03:00]} 17. Nxd2 {[%emt 0:01:23]} b6 {[%emt 0:13:53]} 18. Rac1 {[%emt 0:05:12]} Rc8 {[%emt 0:02:13]} 19. Rc6 {[%emt 0:02:48]} Rxc6 {[%emt 0:05:08]} 20. Qxc6 {[%emt 0:00:42]} Qc8 {[%emt 0:03:17]} 21. Rc1 {[%emt 0:00:17]} Qxc6 {[%emt 0:01:13]} 22. Rxc6 {[%emt 0:00:10]} Kf8 {[%emt 0:01:30]} 23. Nb1 {[%emt 0:00:59]} Ke7 {[%emt 0:02:32]} 24. Nc3 {[%emt 0:00:31]} g5 {[%emt 0:05:55]} 25. Nb5 {[%emt 0:08:35]} Rb8 {[%emt 0:04:43]} 26. Nc7 {[%emt 0:04:51]} Kd8 {[%emt 0:02:30]} 27. Nb5 {[%emt 0:00:45]} Ke7 {[%emt 0:03:26]} 28. Nc7 {[%emt 0:05:46]} Kd8 {[%emt 0:08:14]} 29. Nb5 {[%emt 0:01:38]} Ke7 {[%emt 0:02:05]} 30. h3 {[%emt 0:09:13]} f6 {[%emt 0:03:29]} 31. Nc7 {[%emt 0:00:30]} Nf8 {[%emt 0:01:07]} 32. Rc3 {[%emt 0:10:12]} fxe5 {[%emt 0:03:40]} 33. dxe5 {[%emt 0:01:28]} Nd7 {[%emt 0:01:23]} 34. Rg3 {[%emt 0:01:00]} Nxe5 {[%emt 0:01:31]} 35. Rxg5 {[%emt 0:00:09]} Kf6 {[%emt 0:00:22]} 36. Rg3 {[%emt 0:01:22]} Rc8 {[%emt 0:02:26]} 37. Rc3 {[%emt 0:03:17]} Nc4 {[%emt 0:01:14]} 38. Na6 {[%emt 0:01:23]} Ke5 {[%emt 0:04:04]} 39. b3 {[%emt 0:00:00]} Nd6 40. Rxc8 {[%emt 0:00:00]} Nxc8 {[%emt 0:00:00]} 41. Nc7 {[%emt 0:04:40]} g5 {[%emt 0:09:55]} 42. Kf1 {[%emt 0:00:22]} Kd6 {[%emt 0:00:41]} 43. Ne8+ {[%emt 0:01:20]} Kc5 {[%emt 0:04:41]} 44. Nc7 {[%emt 0:03:03]} Kb4 {[%emt 0:05:04]} 45. Nxe6 {[%emt 0:00:17]} Kxb3 {[%emt 0:00:01]} 46. Nxg5 {[%emt 0:00:14]} Kxa4 {[%emt 0:00:02]} 47. h4 {[%emt 0:00:28]} Kb3 {[%emt 0:00:04]} 48. h5 {[%emt 0:00:29]} a4 {[%emt 0:00:09]} 49. h6 {[%emt 0:01:30]} Ne7 {[%emt 0:00:08]} 50. h7 {[%emt 0:00:17]} Ng6 {[%emt 0:00:02]} 51. f4 {[%emt 0:02:38]} a3 {[%emt 0:00:10]} 52. f5 {[%emt 0:00:08]} Nh8 {[%emt 0:00:46]} 53. f6 {[%emt 0:00:10]} a2 {[%emt 0:00:05]} 54. f7 {[%emt 0:00:03]} a1=Q+ {[%emt 0:00:08]} 55. Kf2 {[%emt 0:00:14]} Qf6+ {[%emt 0:00:41]} 56. Kg1 {[%emt 0:00:11]} d4 {[%emt 0:00:23]} 57. g4 {[%emt 0:02:14]} d3 {[%emt 0:01:07]} 0-1

[Event "FIDE WCCC U8 2018"]
[Site "Santiago de Compostela"]
[Date "2018.11.14"]
[Round "10"]
[White "Marrujo Pardo, Mauricio Emmanuel"]
[Black "Kiaan Agrawal"]
[Result "1-0"]
[ECO "B35"]
[WhiteElo "1584"]
[BlackElo "1281"]
[Annotator "NA RC"]
[PlyCount "133"]
[EventDate "2018.11.04"]
[EventType "swiss"]
[EventCountry "ESP"]
[SourceTitle "playchess.com"]
[Source "ChessBase"]
[SourceQuality "1"]
[TimeControl "40/5400+30:1800+30"]

1. e4 {[%emt 0:00:06]} c5 {[%emt 0:00:00]} 2. Nf3 {[%emt 0:00:23]} g6 {[%emt 0:00:35]} 3. d4 {[%emt 0:00:41]} cxd4 {[%emt 0:00:42]} 4. Nxd4 {[%emt 0:00:17]} Nc6 {[%emt 0:00:22]} 5. Nc3 {[%emt 0:00:18]} Bg7 {[%emt 0:01:02]} 6. Be3 {[%emt 0:00:23]} Nf6 {[%emt 0:00:49]} 7. Bc4 {[%emt 0:00:09]} Qa5 {[%emt 0:03:42]} 8. O-O {[%emt 0:09:23]} O-O {[%emt 0:01:09]} 9. Bb3 {[%emt 0:11:41]} d6 {[%emt 0:03:12]} 10. Qe2 {[%emt 0:02:05]} Ng4 {[%emt 0:08:54]} 11. Nxc6 {[%emt 0:12:25]} bxc6 {[%emt 0:00:21]} 12. Bd2 {[%emt 0:00:21]} Bd7 {[%emt 0:19:35]} 13. Qe1 {[%emt 0:05:48]} Qc7 {[%emt 0:05:07]} 14. h3 {[%emt 0:02:30]} Nf6 {[%emt 0:01:05]} 15. Na4 {[%emt 0:02:54]} c5 {[%emt 0:07:47]} 16. c4 {[%emt 0:06:36]} Be6 {[%emt 0:11:53]} 17. Bc3 {[%emt 0:05:36]} Nd7 {[%emt 0:01:31]} 18. f4 {[%emt 0:02:50]} Bxc3 {[%emt 0:09:14]} 19. Nxc3 {[%emt 0:01:58]} Nb6 {[%emt 0:06:32]} 20. Nd5 {[%emt 0:02:56]} Nxd5 {[%emt 0:02:13]} 21. cxd5 {[%emt 0:00:31]} Bd7 {[%emt 0:03:24]} 22. e5 {[%emt 0:02:42]} Qb6 {[%emt 0:05:37]} 23. Qf2 {[%emt 0:00:13]} Bb5 {[%emt 0:00:50]} 24. Rfc1 {[%emt 0:00:29]} Rac8 {[%emt 0:01:03]} 25. Bc4 {[%emt 0:00:10]} Bxc4 {[%emt 0:00:57]} 26. Rxc4 {[%emt 0:00:07]} Qb7 {[%emt 0:00:42]} 27. Rd1 {[%emt 0:01:13]} Rfd8 {[%emt 0:02:12]} 28. b3 {[%emt 0:01:15]} Rc7 {[%emt 0:01:18]} 29. Qf3 {[%emt 0:01:09]} Rcd7 {[%emt 0:01:07]} 30. e6 {[%emt 0:00:51]} fxe6 {[%emt 0:00:16]} 31. dxe6 {[%emt 0:00:07]} Qxf3 {[%emt 0:00:15]} 32. gxf3 {[%emt 0:00:03]} Rc7 {[%emt 0:00:27]} 33. Rd5 {[%emt 0:04:47]} Rdc8 {[%emt 0:00:19]} 34. f5 {[%emt 0:00:19]} Kg7 {[%emt 0:00:43]} 35. fxg6 {[%emt 0:01:28]} hxg6 {[%emt 0:00:37]} 36. Rf4 {[%emt 0:01:49]} Rf8 {[%emt 0:00:16]} 37. Rxf8 {[%emt 0:01:20]} Kxf8 {[%emt 0:00:09]} 38. Rg5 {[%emt 0:00:32]} Kg7 {[%emt 0:00:12]} 39. Rg4 {[%emt 0:00:00]} Kf6 {[%emt 0:00:00]} 40. Kf2 {[%emt 0:00:00]} Kxe6 {[%emt 0:00:00]} 41. Rxg6+ {[%emt 0:00:21]} Kf7 {[%emt 0:02:28]} 42. Rg4 {[%emt 0:00:05]} Rc6 {[%emt 0:01:39]} 43. Ra4 {[%emt 0:00:12]} a6 {[%emt 0:00:10]} 44. Ke3 {[%emt 0:00:17]} Ke6 {[%emt 0:01:13]} 45. h4 {[%emt 0:00:12]} Kf5 {[%emt 0:01:47]} 46. Rg4 {[%emt 0:00:25]} d5 {[%emt 0:01:04]} 47. Rg5+ {[%emt 0:00:01]} Kf6 {[%emt 0:02:10]} 48. Rxd5 {[%emt 0:00:09]} c4 {[%emt 0:00:09]} 49. bxc4 {[%emt 0:00:16]} Rxc4 {[%emt 0:00:08]} 50. Rd4 {[%emt 0:00:04]} Rc5 {[%emt 0:01:24]} 51. Ra4 {[%emt 0:00:12]} a5 {[%emt 0:00:13]} 52. Kf4 {[%emt 0:00:06]} Rb5 {[%emt 0:07:21]} 53. a3 {[%emt 0:00:17]} Rc5 {[%emt 0:00:28]} 54. Kg4 {[%emt 0:00:38]} Kg6 {[%emt 0:02:50]} 55. Re4 {[%emt 0:00:23]} Kf6 {[%emt 0:05:31]} 56. f4 {[%emt 0:00:40]} Rc3 {[%emt 0:03:38]} 57. a4 {[%emt 0:00:37]} Rc5 {[%emt 0:01:45]} 58. Re5 {[%emt 0:01:12]} Rxe5 {[%emt 0:06:06]} 59. fxe5+ {[%emt 0:00:08]} Kg6 {[%emt 0:01:03]} 60. h5+ {[%emt 0:00:07]} Kh6 {[%emt 0:01:29]} 61. e6 {[%emt 0:00:07]} Kg7 {[%emt 0:00:28]} 62. Kg5 {[%emt 0:00:11]} Kh7 {[%emt 0:00:16]} 63. h6 {[%emt 0:00:04]} Kg8 {[%emt 0:00:13]} 64. Kg6 {[%emt 0:00:07]} Kh8 {[%emt 0:00:11]} 65. Kf7 {[%emt 0:00:05]} Kh7 {[%emt 0:00:05]} 66. Kxe7 {[%emt 0:00:05]} Kxh6 {[%emt 0:00:13]} 67. Kf6 {[%emt 0:00:02]} 1-0

[Event "FIDE WCCC U8 2018"]
[Site "Santiago de Compostela"]
[Date "2018.11.14"]
[Round "10"]
[White "Chen, Ryo"]
[Black "Mamedov, Edgar"]
[Result "0-1"]
[ECO "B01"]
[WhiteElo "1573"]
[BlackElo "1599"]
[Annotator "NA RC"]
[PlyCount "78"]
[EventDate "2018.11.04"]
[EventType "swiss"]
[EventCountry "ESP"]
[SourceTitle "playchess.com"]
[Source "ChessBase"]
[SourceQuality "1"]
[TimeControl "40/5400+30:1800+30"]

1. e4 {[%emt 0:00:00]} d5 {[%emt 0:00:16]} 2. exd5 {[%emt 0:00:00]} Qxd5 {[%emt 0:00:23]} 3. Nc3 {[%emt 0:00:00]} Qd8 {[%emt 0:00:30]} 4. d4 {[%emt 0:00:07]} Nf6 {[%emt 0:00:27]} 5. Nf3 {[%emt 0:00:12]} Bg4 {[%emt 0:00:17]} 6. h3 {[%emt 0:00:11]} Bxf3 {[%emt 0:00:14]} 7. Qxf3 {[%emt 0:00:11]} c6 {[%emt 0:00:29]} 8. Be3 {[%emt 0:00:15]} e6 {[%emt 0:00:14]} 9. Bd3 {[%emt 0:00:08]} Nbd7 {[%emt 0:02:09]} 10. O-O-O {[%emt 0:00:19]} Bb4 {[%emt 0:00:21]} 11. Ne2 {[%emt 0:00:53]} Qc7 {[%emt 0:03:27]} 12. g4 {[%emt 0:02:54]} Nd5 {[%emt 0:09:50]} 13. c4 {[%emt 0:04:50]} Nxe3 {[%emt 0:01:50]} 14. fxe3 {[%emt 0:00:31]} h6 {[%emt 0:11:56]} 15. Rhf1 {[%emt 0:01:51]} Rf8 {[%emt 0:00:38]} 16. Ng3 {[%emt 0:01:36]} O-O-O {[%emt 0:01:57]} 17. c5 {[%emt 0:00:25]} Bxc5 {[%emt 0:03:18]} 18. Nh5 {[%emt 0:07:08]} g6 {[%emt 0:05:27]} 19. Nf6 Nxf6 {[%emt 0:01:49]} 20. Qxf6 {[%emt 0:03:09]} Be7 {[%emt 0:00:23]} 21. Qg7 {[%emt 0:01:03]} Bg5 {[%emt 0:01:09]} 22. Rf3 {[%emt 0:00:56]} Qd7 {[%emt 0:13:38]} 23. Kb1 {[%emt 0:05:09]} Qe8 {[%emt 0:04:34]} 24. Bc4 {[%emt 0:05:50]} f6 {[%emt 0:05:27]} 25. h4 {[%emt 0:06:00]} Rg8 {[%emt 0:09:57]} 26. Qh7 {[%emt 0:00:36]} Rd7 {[%emt 0:03:06]} 27. Qxg8 {[%emt 0:00:34]} Qxg8 {[%emt 0:00:28]} 28. hxg5 {[%emt 0:00:10]} f5 {[%emt 0:02:08]} 29. gxf5 {[%emt 0:00:55]} gxf5 {[%emt 0:01:29]} 30. gxh6 {[%emt 0:00:31]} Rh7 {[%emt 0:01:14]} 31. e4 {[%emt 0:03:47]} Rxh6 {[%emt 0:05:11]} 32. exf5 {[%emt 0:00:28]} Qg4 {[%emt 0:01:58]} 33. Rdf1 {[%emt 0:02:53]} exf5 {[%emt 0:00:57]} 34. Rf4 {[%emt 0:01:43]} Qg2 {[%emt 0:01:08]} 35. Rxf5 {[%emt 0:04:35]} Rh2 {[%emt 0:01:13]} 36. Rf8+ {[%emt 0:03:59]} Kc7 {[%emt 0:00:20]} 37. R8f2 {[%emt 0:02:58]} Qe4+ {[%emt 0:00:38]} 38. Kc1 {[%emt 0:03:57]} Rxf2 {[%emt 0:00:16]} 39. Rxf2 {[%emt 0:00:12]} Qe1+ 0-1

[Event "FIDE WCCC U8 2018"]
[Site "Santiago de Compostela"]
[Date "2018.11.14"]
[Round "10"]
[White "Golovchenko, Bogdan"]
[Black "Lakshyesh Mohan Gupta"]
[Result "1-0"]
[ECO "B01"]
[WhiteElo "1556"]
[BlackElo "1060"]
[Annotator "NA RC"]
[PlyCount "53"]
[EventDate "2018.11.04"]
[EventType "swiss"]
[EventCountry "ESP"]
[SourceTitle "playchess.com"]
[Source "ChessBase"]
[SourceQuality "1"]
[TimeControl "40/5400+30:1800+30"]

1. e4 {[%emt 0:00:00]} d5 {[%emt 0:00:00]} 2. exd5 {[%emt 0:00:00]} Nf6 {[%emt 0:00:00]} 3. d4 {[%emt 0:00:02]} Bg4 {[%emt 0:00:00]} 4. f3 {[%emt 0:02:11]} Bf5 {[%emt 0:02:08]} 5. c4 {[%emt 0:01:35]} e6 {[%emt 0:00:06]} 6. dxe6 {[%emt 0:01:34]} Bxe6 {[%emt 0:00:08]} 7. Nc3 {[%emt 0:00:33]} Qe7 {[%emt 0:00:07]} 8. Be2 {[%emt 0:00:57]} Nc6 {[%emt 0:03:31]} 9. d5 {[%emt 0:01:31]} O-O-O {[%emt 0:00:12]} 10. Bd2 {[%emt 0:00:31]} Nd4 {[%emt 0:02:02]} 11. dxe6 {[%emt 0:01:29]} Qxe6 {[%emt 0:00:08]} 12. Qa4 {[%emt 0:02:00]} Bb4 {[%emt 0:08:35]} 13. O-O-O {[%emt 0:32:49]} Bxc3 {[%emt 0:01:06]} 14. Bxc3 {[%emt 0:00:13]} Nxe2+ {[%emt 0:00:14]} 15. Nxe2 {[%emt 0:00:03]} Qe3+ {[%emt 0:01:40]} 16. Bd2 {[%emt 0:05:23]} Qxe2 {[%emt 0:00:26]} 17. Qxa7 {[%emt 0:00:28]} Qxc4+ {[%emt 0:00:15]} 18. Bc3 {[%emt 0:00:11]} Nd7 {[%emt 0:11:49]} 19. Rd2 {[%emt 0:01:45]} Nb6 {[%emt 0:01:04]} 20. Rc2 {[%emt 0:06:56]} Qf4+ {[%emt 0:04:27]} 21. Bd2 {[%emt 0:00:19]} Qf5 {[%emt 0:02:32]} 22. Ba5 {[%emt 0:02:14]} Kd7 {[%emt 0:23:42]} 23. Bxb6 {[%emt 0:00:20]} cxb6 {[%emt 0:02:51]} 24. Qxb7+ {[%emt 0:00:07]} Ke8 {[%emt 0:01:05]} 25. Re1+ {[%emt 0:00:07]} Kf8 {[%emt 0:00:12]} 26. Qe7+ {[%emt 0:00:07]} Kg8 {[%emt 0:01:24]} 27. Qxd8# {[%emt 0:00:03]} 1-0

[Event "FIDE WCCC U8 2018"]
[Site "Santiago de Compostela"]
[Date "2018.11.14"]
[Round "10"]
[White "Jaakkola, Niklas"]
[Black "Usov, Aleksandr E."]
[Result "0-1"]
[ECO "B13"]
[WhiteElo "1469"]
[BlackElo "1640"]
[Annotator "NA RC"]
[PlyCount "74"]
[EventDate "2018.11.04"]
[EventType "swiss"]
[EventCountry "ESP"]
[SourceTitle "playchess.com"]
[Source "ChessBase"]
[SourceQuality "1"]
[TimeControl "40/5400+30:1800+30"]

1. e4 {[%emt 0:00:00]} c6 {[%emt 0:00:00]} 2. d4 {[%emt 0:00:00]} d5 {[%emt 0:00:00]} 3. exd5 {[%emt 0:01:04]} cxd5 {[%emt 0:00:06]} 4. c4 {[%emt 0:00:28]} Nf6 {[%emt 0:00:08]} 5. Bg5 {[%emt 0:00:15]} Ne4 {[%emt 0:03:21]} 6. Bf4 {[%emt 0:00:26]} e6 {[%emt 0:11:02]} 7. Nf3 {[%emt 0:08:52]} Bb4+ {[%emt 0:03:44]} 8. Nbd2 {[%emt 0:00:24]} Nxd2 {[%emt 0:03:56]} 9. Bxd2 {[%emt 0:02:57]} Bxd2+ {[%emt 0:02:27]} 10. Qxd2 {[%emt 0:04:44]} dxc4 {[%emt 0:00:50]} 11. Bxc4 {[%emt 0:00:53]} O-O {[%emt 0:00:22]} 12. O-O {[%emt 0:01:40]} Nd7 {[%emt 0:06:10]} 13. Rac1 {[%emt 0:12:55]} Nf6 {[%emt 0:13:42]} 14. Bd3 {[%emt 0:02:45]} b6 {[%emt 0:00:53]} 15. b3 {[%emt 0:09:07]} Bb7 {[%emt 0:02:19]} 16. Be2 {[%emt 0:02:39]} Qd6 {[%emt 0:03:25]} 17. Rfd1 {[%emt 0:08:58]} Rfd8 {[%emt 0:04:21]} 18. Ne5 {[%emt 0:01:34]} Rac8 {[%emt 0:10:17]} 19. Bf3 {[%emt 0:05:16]} Bd5 {[%emt 0:02:11]} 20. Bxd5 {[%emt 0:02:29]} Nxd5 {[%emt 0:06:12]} 21. Nf3 {[%emt 0:10:48]} Qf4 {[%emt 0:00:38]} 22. Qxf4 {[%emt 0:04:29]} Nxf4 {[%emt 0:00:08]} 23. Kf1 {[%emt 0:00:20]} Nd5 {[%emt 0:00:12]} 24. a3 {[%emt 0:01:05]} Nc3 {[%emt 0:04:08]} 25. Rd2 {[%emt 0:05:36]} Nb5 {[%emt 0:00:17]} 26. Rxc8 {[%emt 0:04:46]} Rxc8 {[%emt 0:00:08]} 27. a4 {[%emt 0:00:14]} Rc1+ {[%emt 0:00:20]} 28. Ke2 {[%emt 0:00:13]} Nc3+ {[%emt 0:00:17]} 29. Kd3 {[%emt 0:00:11]} Nd5 {[%emt 0:00:10]} 30. g3 {[%emt 0:01:20]} Rc3+ {[%emt 0:00:13]} 31. Ke2 {[%emt 0:01:34]} Rxb3 {[%emt 0:00:02]} 32. Rc2 {[%emt 0:00:09]} g6 {[%emt 0:01:35]} 33. Nd2 {[%emt 0:01:26]} Ra3 {[%emt 0:00:26]} 34. Rc4 {[%emt 0:01:30]} Nc3+ {[%emt 0:00:19]} 35. Kd3 {[%emt 0:01:20]} Nxa4+ {[%emt 0:02:00]} 36. Kc2 {[%emt 0:00:38]} b5 {[%emt 0:00:26]} 37. Rb4 {[%emt 0:00:38]} a6 {[%emt 0:00:18]} 0-1